fUSD/lending_fUSD_20250514
["ID","MTS","AMOUNT","RATE_DAILY","PERIOD"]
[361042154,1747210248571,-563.24,0.00012328,2]
[361042155,1747210248581,-400.0,0.00012328,2]
[361042156,1747210248591,-347.02361278,0.00012335,2]
[361042157,1747210248603,-239.97638722,0.00012335,2]
[361042158,1747210248613,-427.65,0.00012338,2]
[361042159,1747210248626,-1742.16,0.00012338,2]
[361042160,1747210248636,-178.53250206,0.00012338,2]
[361042161,1747210248648,-313.24749794,0.00012338,2]
[361042162,1747210248657,-400.0,0.00012338,2]
[361042163,1747210248668,-400.0,0.00012338,2]
[361042164,1747210248678,-400.0,0.00012338,2]
[361042165,1747210248688,-400.0,0.00012338,2]
[361042166,1747210248697,-3076.85250406,0.00012338,2]
[361042167,1747210248710,-702.09749594,0.00012338,2]
[361042168,1747210248720,-400.0,0.00012338,2]
[361042169,1747210248730,-920.65,0.00012338,2]
[361042170,1747210248739,-400.0,0.00012338,2]
[361042171,1747210248750,-234.55250406,0.00012338,2]
[361042172,1747210248763,-175.44749594,0.00012338,2]
[361042173,1747210248773,-400.0,0.00012338,2]
[361042174,1747210248783,-160.84214206,0.00012338,2]
[361042175,1747210248798,-919.16785794,0.00012338,2]
[361042176,1747210248808,-1129.48,0.00012338,2]
[361042177,1747210248818,-4801.65,0.00012338,2]
[361042178,1747210248827,-492.82071714,0.00012338,2]
[361042179,1747210248838,-400.0,0.00012338,2]
[361042180,1747210248847,-5094.71,0.00012338,2]
[361042181,1747210248857,-1194.36,0.00012338,2]
[361042182,1747210248869,-467.21,0.00012338,2]
[361042183,1747210248880,-400.0,0.00012338,2]
[361042184,1747210248892,-4370.97949579,0.00012338,2]
[361042185,1747210248910,-2091.99050421,0.00012338,2]
[361042186,1747210248920,-400.0,0.00012338,2]
[361042187,1747210248929,-230.85949579,0.00012338,2]
[361042188,1747210248942,-169.14050421,0.00012338,2]
[361042189,1747210248951,-400.0,0.00012338,2]
[361042190,1747210248962,-270.73456391,0.00012338,2]
[361042191,1747210248973,-311.414569,0.00012346,2]
[361042192,1747210248983,-665.31,0.00012346,2]
[361042193,1747210248993,-400.0,0.00012346,2]
[361042194,1747210249003,-891.67,0.00012346,2]
[361042195,1747210249012,-400.0,0.00012347,2]
[361042196,1747210249022,-400.0,0.00012347,2]
[361042197,1747210249032,-491.77,0.00012347,2]
[361042198,1747210249042,-420.04,0.00012347,2]
[361042199,1747210249052,-398.04936288,0.00012347,2]
[361042200,1747210249064,-1.95063712,0.00012347,2]
[361042201,1747210249074,-1395.69,0.00012347,2]
[361042202,1747210249083,-316.10828061,0.00012347,2]
[361042203,1747210249095,-83.89171939,0.00012347,2]
[361042204,1747210249104,-336.06377196,0.00012347,2]
[361042205,1747210249118,-63.93622804,0.00012347,2]
[361042206,1747210249127,-581.95,0.00012347,2]
[361042207,1747210249138,-8.78507476,0.00012347,2]
[361042208,1747210249154,-391.21492524,0.00012347,2]
[361042209,1747210249164,-400.0,0.00012347,2]
[361042210,1747210249174,-400.0,0.00012347,2]
[361042211,1747210249183,-296.93507476,0.00012347,2]
[361042212,1747210592248,203.73,8.902e-05,2]
[361042213,1747210611613,450.0,0.0001,2]
[361042214,1747210647594,200.3452768,0.0001,2]
[361042215,1747210719393,3931.0,0.000251,120]
[361042216,1747210898417,150.0,0.00010235,7]
[361042221,1747211324662,4907.97,9.936e-05,2]
[361042273,1747211431615,-293.79,0.00010219,2]
[361042274,1747211431626,-162.1,0.00010262,2]
[361042275,1747211431637,-200.0,0.00010277,2]
[361042276,1747211431647,-168.85,0.00010293,2]
[361042277,1747211431657,-200.0,0.00010511,2]
[361042278,1747211431667,-205.63145169,0.000106,2]
[361042279,1747211431685,-184.30648557,0.000106,2]
[361042280,1747211431695,-91.34385607,0.00010697,2]
[361042517,1747211437423,-72.80614393,0.00010697,2]
[361042518,1747211437434,-164.15,0.00010705,2]
[361042519,1747211437445,-164.15,0.00010712,2]
[361042520,1747211437455,-164.15,0.0001072,2]
[361042521,1747211437465,-164.15,0.00010728,2]
[361042522,1747211437474,-164.15,0.00010735,2]
[361042523,1747211437484,-164.15,0.00010743,2]
[361042524,1747211437494,-164.15,0.00010751,2]
[361042525,1747211437503,-1000.0,0.00010792,2]
[361042526,1747211437513,-256.02176538,0.00010866,2]
[361042527,1747211437523,-1200.0,0.00010867,2]
[361042528,1747211437533,-9417.12209069,0.00010868,2]
[361042529,1747211437544,-293.78672757,0.00010868,2]
[361042530,1747211437556,-800.1462528,0.00010868,2]
[361042532,1747211437968,-1720.32690124,0.00010868,2]
[361042533,1747211437994,-599.73664137,0.00010868,2]
[361042534,1747211438007,-2093.79435257,0.00010868,2]
[361042545,1747211439704,-2875.31813233,0.00010868,2]
[361042546,1747211439716,-524.865,0.00010868,2]
[361042547,1747211439761,-918.87990143,0.00010868,2]
[361042548,1747211439771,-500.0,0.00010869,2]
[361042549,1747211439781,-200.0,0.00010897,2]
[361042550,1747211439791,-470.52009857,0.00010929,2]
[361042551,1747211439816,-92.67375808,0.00010929,2]
[361042552,1747211439827,-331.44112857,0.00010929,2]
[361042553,1747211439836,-349.60081751,0.00010929,2]
[361042554,1747211439846,-174.29073933,0.00010929,2]
[361042555,1747211439856,-151.242528,0.00010958,2]
[361042556,1747211439868,-151.242528,0.00010958,2]
[361042557,1747211439878,-151.242528,0.00010961,2]
[361042558,1747211439889,-500.0,0.00010973,2]
[361042559,1747211439899,-267.37477981,0.00010973,2]
[361042560,1747211439909,-500.0,0.00010973,2]
[361042561,1747211439919,-500.0,0.00010973,2]
[361042562,1747211439928,-151.242528,0.00010978,2]
[361042563,1747211439938,-151.242528,0.00010993,2]
[361042564,1747211439948,-150.0,0.00010998,2]
[361042565,1747211439958,-635.11,0.00010999,2]
[361042566,1747211439967,-400.0,0.00010999,2]
[361042567,1747211439976,-445.73,0.00010999,2]
[361042568,1747211439986,-400.0,0.00010999,2]
[361042569,1747211439995,-400.52813789,0.00010999,2]
[361042570,1747211440004,-400.0,0.00010999,2]
[361042571,1747211440013,-3286.55836629,0.00010999,2]
[361042572,1747211440025,-1175.40163371,0.00010999,2]
[361042573,1747211440038,-400.93443814,0.00010999,2]
[361042574,1747211440048,-400.0,0.00010999,2]
[361042575,1747211440057,-364.57208966,0.00010999,2]
[361042576,1747211440067,-400.0,0.00010999,2]
[361042577,1747211440077,-400.0,0.00010999,2]
[361042578,1747211440087,-400.0,0.00010999,2]
[361042580,1747211440097,-400.0,0.00010999,2]
[361042582,1747211440107,-400.0,0.00010999,2]
[361042583,1747211440122,-400.0,0.00010999,2]
[361042585,1747211440131,-500.0,0.00010999,2]
[361042587,1747211440141,-500.0,0.00010999,2]
[361042588,1747211440151,-500.0,0.00010999,2]
[361042589,1747211440161,-500.0,0.00010999,2]
[361042590,1747211440171,-500.0,0.00010999,2]
[361042591,1747211440181,-359481.47926643,0.00011,2]
[361042592,1747211440192,-5303.65284892,0.00011,2]
[361042593,1747211440202,-2283007.38472176,0.00011,2]
[361042606,1747211442529,-167.23,0.00010999,2]
[361042607,1747211442538,-400.0,0.00010999,2]
[361042608,1747211442548,-780.21,0.00010999,2]
[361042609,1747211442557,-2953.39041726,0.00011,2]
[361042610,1747211442576,-537.88414791,0.00011,2]
[361042611,1747211442690,-3822.52695706,0.00011,2]
[361042612,1747211442702,-1645.58521982,0.00011,2]
[361042613,1747211442743,-3797.68104727,0.00011,2]
[361042614,1747211442799,-2039.30178093,0.00011,2]
[361042615,1747211442810,-446.310827,0.00011,2]
[361042616,1747211442908,-720.0899999,0.00011,2]
[361042618,1747211442920,-635.716992,0.00011,2]
[361042620,1747211442931,-655.65,0.00011,2]
[361042622,1747211442942,-857.8,0.00011,2]
[361042641,1747211445492,-400.0,0.00010999,2]
[361042642,1747211445502,-312.682,0.00011,2]
[361042643,1747211445513,-222407.62885722,0.00011,2]
[361042644,1747211445525,-7805.15052725,0.00011,2]
[361042645,1747211445536,-302.0,0.00011,2]
[361042646,1747211445548,-1729.24609705,0.00011,2]
[361042647,1747211445559,-38226.54394298,0.00011,2]
[361042648,1747211445577,-300.9518,0.00011,2]
[361042649,1747211445588,-3367.44312023,0.00011,2]
[361042650,1747211445601,-924.87105184,0.00011,2]
[361042651,1747211445613,-1984.78,0.00011,2]
[361042652,1747211445625,-2647.73328687,0.00011,2]
[361042653,1747211445670,-1884.17182153,0.00011,2]
[361042654,1747211445681,-710.81898075,0.00011,2]
[361042655,1747211445828,-17333.00231408,0.00011,2]
[361042661,1747211615107,248.56,8.224e-05,2]
[361042662,1747212169969,150.0,0.00010022,7]
[361042669,1747212388835,1353.02,9.991e-05,2]
[361042671,1747212429303,9208.62,9.991e-05,2]
[361042672,1747212449461,450.0,0.0001,2]
[361042680,1747212568847,-162.53425863,0.00010075,2]
[361042683,1747212631624,-230.30574137,0.00010075,2]
[361042684,1747212631634,-476.60631237,0.00010118,2]
[361042685,1747212631674,-523.39368763,0.00010118,2]
[361042686,1747212631684,-250.0,0.00010303,2]
[361042687,1747212631694,-248.56,0.00010488,2]
[361042688,1747212631704,-1944.71723948,0.00010561,2]
[361042689,1747212631714,-302.21390444,0.00010852,2]
[361042690,1747212631782,-897.78609556,0.00010852,2]
[361042691,1747212631791,-300.0,0.00010852,2]
[361042692,1747212631800,-300.0,0.00010852,2]
[361042693,1747212631809,-500.0,0.00010853,2]
[361042694,1747212631818,-500.0,0.00010853,2]
[361042695,1747212631828,-500.0,0.00010853,2]
[361042696,1747212631839,-500.0,0.00010853,2]
[361042697,1747212631849,-500.0,0.00010853,2]
[361042698,1747212631859,-500.0,0.00010853,2]
[361042699,1747212631870,-500.0,0.00010853,2]
[361042700,1747212631880,-390.54055309,0.00010853,2]
[361042701,1747212631890,-500.0,0.00010853,2]
[361042702,1747212631899,-500.0,0.00010853,2]
[361042703,1747212631909,-500.0,0.00010853,2]
[361042704,1747212631918,-500.0,0.00010853,2]
[361042705,1747212631928,-500.0,0.00010853,2]
[361042706,1747212631938,-500.0,0.00010853,2]
[361042707,1747212631947,-500.0,0.00010853,2]
[361042709,1747212631957,-500.0,0.00010853,2]
[361042711,1747212631967,-500.0,0.00010853,2]
[361042712,1747212631976,-500.0,0.00010853,2]
[361042713,1747212631986,-500.0,0.00010853,2]
[361042714,1747212631996,-500.0,0.00010853,2]
[361042716,1747212632005,-500.0,0.00010853,2]
[361042717,1747212632015,-500.0,0.00010853,2]
[361042718,1747212632024,-500.0,0.00010853,2]
[361042719,1747212632034,-500.0,0.00010853,2]
[361042720,1747212632043,-500.0,0.00010853,2]
[361042721,1747212632053,-500.0,0.00010853,2]
[361042723,1747212632063,-500.0,0.00010853,2]
[361042725,1747212632072,-500.0,0.00010853,2]
[361042727,1747212632081,-500.0,0.00010853,2]
[361042729,1747212632091,-500.0,0.00010853,2]
[361042731,1747212632100,-500.0,0.00010853,2]
[361042733,1747212632109,-500.0,0.00010853,2]
[361042735,1747212632121,-500.0,0.00010853,2]
[361042737,1747212632130,-500.0,0.00010853,2]
[361042739,1747212632139,-500.0,0.00010853,2]
[361042741,1747212632148,-500.0,0.00010853,2]
[361042743,1747212632158,-500.0,0.00010853,2]
[361042745,1747212632167,-500.0,0.00010853,2]
[361042747,1747212632176,-500.0,0.00010853,2]
[361042749,1747212632186,-150.0,0.00010854,2]
[361042751,1747212632195,-2024.09490665,0.00010863,2]
[361042753,1747212632206,-984.22209335,0.00010863,2]
[361042755,1747212632214,-173.26884021,0.00010863,2]
[361042757,1747212632223,-262.8791,0.00010878,2]
[361042759,1747212632233,-1008.5299664,0.00010899,2]
[361042761,1747212632244,-1722.8,0.00010899,2]
[361042763,1747212632255,-2074.2438,0.00010899,2]
[361042766,1747212632268,-7002.7120336,0.00010899,2]
[361042768,1747212632277,-1469.8765,0.00010899,2]
[361042770,1747212632288,-1462.72987597,0.00010899,2]
[361042772,1747212632299,-314.08132403,0.00010899,2]
[361042774,1747212632308,-349.78862094,0.00010899,2]
[361042776,1747212632321,-213.40523569,0.00010899,2]
[361042778,1747212632330,-402.2755,0.000109,2]
[361042780,1747212632340,-6204.9454,0.000109,2]
[361042782,1747212632349,-3612.1186,0.000109,2]
[361042784,1747212632358,-167.38850893,0.00010929,2]
[361042786,1747212632372,-298.29701574,0.00010929,2]
[361042788,1747212632381,-1046.0,0.0001095,2]
[361042790,1747212632390,-860.606928,0.00010958,2]
[361042792,1747212632399,-860.606928,0.00010958,2]
[361042794,1747212632409,-860.606928,0.00010958,2]
[361042796,1747212632417,-207.881853,0.00010958,2]
[361042798,1747212632427,-186.334635,0.00010958,2]
[361042800,1747212632436,-860.606928,0.00010959,2]
[361042802,1747212632445,-860.606928,0.00010961,2]
[361042804,1747212632454,-860.606928,0.00010969,2]
[361042806,1747212632463,-186.334635,0.00010969,2]
[361042808,1747212632472,-500.0,0.00010973,2]
[361042809,1747212632482,-500.0,0.00010973,2]
[361042812,1747212632491,-500.0,0.00010973,2]
[361042814,1747212632501,-500.0,0.00010973,2]
[361042815,1747212632510,-860.606928,0.00010978,2]
[361042817,1747212632520,-1000.0,0.0001099,2]
[361042819,1747212632533,-1000.0,0.0001099,2]
[361042821,1747212632542,-1000.0,0.0001099,2]
[361042823,1747212632551,-1000.0,0.0001099,2]
[361042825,1747212632560,-1184.0,0.0001099,2]
[361042827,1747212632570,-1000.0,0.0001099,2]
[361042829,1747212632579,-1000.0,0.0001099,2]
[361042831,1747212632589,-506.0,0.0001099,2]
[361042834,1747212632599,-860.606928,0.00010992,2]
[361042835,1747212632608,-860.606928,0.00010993,2]
[361042837,1747212632621,-860.606928,0.00010994,2]
[361042839,1747212632632,-400.0,0.00010998,2]
[361042841,1747212632641,-400.0,0.00010998,2]
[361042843,1747212632651,-713.39,0.00010998,2]
[361042845,1747212632660,-400.0,0.00010998,2]
[361042847,1747212632669,-1769.42,0.00010998,2]
[361042849,1747212632678,-427.16,0.00010998,2]
[361042851,1747212632688,-13665.4568225,0.00010998,2]
[361042854,1747212632700,-1379.46091107,0.00010998,2]
[361042856,1747212632711,-712.80182721,0.00010998,2]
[361043240,1747212637601,-2058.28043922,0.00010998,2]
[361043241,1747212637617,-400.0,0.00010998,2]
[361043242,1747212637634,-425.19462499,0.00010998,2]
[361043243,1747212637647,-400.0,0.00010998,2]
[361043244,1747212637658,-292.84998006,0.00010998,2]
[361043245,1747212637672,-400.0,0.00010998,2]
[361043246,1747212637684,-128.39558977,0.00010998,2]
[361043247,1747212637702,-121.60441023,0.00010998,2]
[361043248,1747212637716,-400.0,0.00010998,2]
[361043249,1747212637728,-150.0,0.00010998,2]
[361043250,1747212637740,-416.40984844,0.00010998,2]
[361043251,1747212637750,-430.31,0.00010998,2]
[361043252,1747212637761,-400.0,0.00010998,2]
[361043253,1747212637772,-259.82634299,0.00010998,2]
[361043254,1747212637783,-322.58989834,0.00010998,2]
[361043255,1747212637797,-77.41010166,0.00010998,2]
[361043256,1747212637808,-628.05,0.00010998,2]
[361043257,1747212637818,-178.38657283,0.00010998,2]
[361043258,1747212637828,-382.74467202,0.00010998,2]
[361043259,1747212637838,-400.0,0.00010998,2]
[361043260,1747212637849,-4538.35410059,0.00010998,2]
[361043263,1747212637885,-297.89589941,0.00010998,2]
[361043265,1747212637895,-400.0,0.00010998,2]
[361043266,1747212637905,-1258.10409769,0.00010998,2]
[361043268,1747212637926,-90.64590231,0.00010998,2]
[361043270,1747212637937,-400.0,0.00010998,2]
[361043273,1747212637950,-400.0,0.00010998,2]
[361043275,1747212637962,-1521.19,0.00010998,2]
[361043277,1747212637972,-293.83054718,0.00010998,2]
[361043288,1747212639810,-106.16945282,0.00010998,2]
[361043289,1747212639820,-400.0,0.00010998,2]
[361043290,1747212639830,-400.0,0.00010998,2]
[361043291,1747212639841,-480.55,0.00010998,2]
[361043292,1747212639852,-668.98,0.00010998,2]
[361043293,1747212639864,-430.3,0.00010998,2]
[361043294,1747212639877,-500.0,0.00010998,2]
[361043295,1747212639888,-809.06,0.00010998,2]
[361043296,1747212639900,-954.19,0.00010998,2]
[361043297,1747212639910,-400.0,0.00010998,2]
[361043298,1747212639920,-400.0,0.00010998,2]
[361043299,1747212639930,-847.12,0.00010998,2]
[361043300,1747212639941,-400.0,0.00010998,2]
[361043301,1747212639952,-638.38,0.00010998,2]
[361043302,1747212639962,-518.31528206,0.00010998,2]
[361043303,1747212639972,-400.0,0.00010998,2]
[361043304,1747212639983,-509.21,0.00010998,2]
[361043305,1747212639994,-400.0,0.00010998,2]
[361043306,1747212640004,-2789.98,0.00010998,2]
[361043307,1747212640014,-400.0,0.00010998,2]
[361043308,1747212640025,-400.0,0.00010998,2]
[361043309,1747212640036,-1989.58,0.00010998,2]
[361043310,1747212640047,-6723.97,0.00010998,2]
[361043311,1747212640057,-400.0,0.00010998,2]
[361043312,1747212640068,-335.96,0.00010998,2]
[361043313,1747212640078,-11464.28,0.00010998,2]
[361043314,1747212640089,-2391.36,0.00010998,2]
[361043315,1747212640099,-614.14,0.00010998,2]
[361043316,1747212640109,-378.41116226,0.00010998,2]
[361043317,1747212640120,-402.93814697,0.00010998,2]
[361043318,1747212640134,-5378.41,0.00010998,2]
[361043319,1747212640146,-1868.1,0.00010998,2]
[361043320,1747212640157,-400.0,0.00010998,2]
[361043321,1747212640168,-753.17,0.00010998,2]
[361043322,1747212640179,-2175.0,0.00010998,2]
[361043323,1747212640190,-3011.87,0.00010998,2]
[361043324,1747212640200,-13676.86,0.00010998,2]
[361043325,1747212640211,-177.98681679,0.00010998,2]
[361043326,1747212640222,-528.71,0.00010998,2]
[361043327,1747212640232,-4037.31,0.00010998,2]
[361043328,1747212640243,-1269.6,0.00010998,2]
[361043329,1747212640253,-167.08781498,0.00010998,2]
[361043330,1747212640264,-7881.18,0.00010998,2]
[361043331,1747212640274,-400.0,0.00010998,2]
[361043332,1747212640285,-400.0,0.00010998,2]
[361043333,1747212640295,-2188.86,0.00010998,2]
[361043334,1747212640305,-400.0,0.00010998,2]
[361043335,1747212640316,-400.0,0.00010998,2]
[361043336,1747212640326,-400.0,0.00010998,2]
[361043337,1747212640336,-4201.44,0.00010998,2]
[361043338,1747212640346,-728.81,0.00010998,2]
[361043339,1747212640358,-400.0,0.00010998,2]
[361043340,1747212640368,-400.0,0.00010998,2]
[361043341,1747212640382,-400.0,0.00010998,2]
[361043342,1747212640393,-9541.87,0.00010998,2]
[361043343,1747212640404,-540.26,0.00010998,2]
[361043344,1747212640414,-2971.26,0.00010998,2]
[361043345,1747212640424,-6394.05,0.00010998,2]
[361043346,1747212640435,-565.48,0.00010998,2]
[361043347,1747212640445,-8616.98,0.00010998,2]
[361043348,1747212640455,-407.38,0.00010998,2]
[361043349,1747212640466,-302.08577927,0.00010998,2]
[361043350,1747212640477,-747.7,0.00010998,2]
[361043351,1747212640487,-400.0,0.00010998,2]
[361043352,1747212640497,-4353.57,0.00010998,2]
[361043353,1747212640507,-3223.62,0.00010998,2]
[361043354,1747212640517,-400.0,0.00010998,2]
[361043355,1747212640529,-400.0,0.00010998,2]
[361043356,1747212640539,-400.0,0.00010998,2]
[361043357,1747212640552,-766.48,0.00010998,2]
[361043358,1747212640563,-461.64,0.00010998,2]
[361043359,1747212640573,-3749.72,0.00010998,2]
[361043360,1747212640583,-400.0,0.00010998,2]
[361043361,1747212640595,-400.0,0.00010998,2]
[361043362,1747212640606,-400.0,0.00010999,2]
[361043363,1747212640616,-400.0,0.00010999,2]
[361043364,1747212640630,-460.82,0.00010999,2]
[361043365,1747212640642,-400.0,0.00010999,2]
[361043366,1747212640652,-400.0,0.00010999,2]
[361043367,1747212640663,-400.0,0.00010999,2]
[361043368,1747212640674,-410.38392287,0.00010999,2]
[361043369,1747212640685,-400.0,0.00010999,2]
[361043370,1747212640697,-400.0,0.00010999,2]
[361043371,1747212640709,-400.0,0.00010999,2]
[361043373,1747212640721,-428.28,0.00010999,2]
[361043374,1747212640731,-400.0,0.00010999,2]
[361043375,1747212640742,-400.0,0.00010999,2]
[361043376,1747212640753,-400.0,0.00010999,2]
[361043377,1747212640765,-231.1729879,0.00010999,2]
[361043378,1747212640776,-400.0,0.00010999,2]
[361043379,1747212640788,-400.0,0.00010999,2]
[361043380,1747212640799,-400.0,0.00010999,2]
[361043381,1747212640810,-400.0,0.00010999,2]
[361043382,1747212640820,-400.0,0.00010999,2]
[361043383,1747212640830,-400.0,0.00010999,2]
[361043384,1747212640840,-400.0,0.00010999,2]
[361043385,1747212640851,-400.0,0.00010999,2]
[361043386,1747212640862,-400.0,0.00010999,2]
[361043387,1747212640872,-400.0,0.00010999,2]
[361043388,1747212640886,-400.0,0.00010999,2]
[361043389,1747212640896,-346.59296969,0.00010999,2]
[361043390,1747212640906,-400.0,0.00010999,2]
[361043391,1747212640916,-378.27447103,0.00010999,2]
[361043392,1747212640926,-400.0,0.00010999,2]
[361043393,1747212640936,-400.0,0.00010999,2]
[361043394,1747212640946,-400.0,0.00010999,2]
[361043395,1747212640956,-400.0,0.00010999,2]
[361043396,1747212640966,-403.67834948,0.00010999,2]
[361043397,1747212640977,-500.0,0.00010999,2]
[361043398,1747212640987,-500.0,0.00010999,2]
[361043399,1747212640997,-400.0,0.00010999,2]
[361043400,1747212641008,-400.0,0.00010999,2]
[361043401,1747212641018,-400.0,0.00010999,2]
[361043402,1747212641027,-400.0,0.00010999,2]
[361043403,1747212641038,-400.0,0.00010999,2]
[361043404,1747212641047,-400.0,0.00010999,2]
[361043405,1747212641058,-400.0,0.00010999,2]
[361043406,1747212641068,-400.0,0.00010999,2]
[361043407,1747212641078,-400.0,0.00010999,2]
[361043408,1747212641088,-161.32375439,0.00010999,2]
[361043409,1747212641098,-400.0,0.00010999,2]
[361043410,1747212641108,-546.33,0.00010999,2]
[361043411,1747212641119,-400.0,0.00010999,2]
[361043412,1747212641134,-400.0,0.00010999,2]
[361043413,1747212641144,-400.0,0.00010999,2]
[361043414,1747212641155,-889.65,0.00010999,2]
[361043415,1747212641165,-400.0,0.00010999,2]
[361043416,1747212641175,-400.0,0.00010999,2]
[361043417,1747212641185,-400.0,0.00010999,2]
[361043418,1747212641195,-400.0,0.00010999,2]
[361043419,1747212641206,-400.0,0.00010999,2]
[361043420,1747212641216,-400.0,0.00010999,2]
[361043421,1747212641226,-167.54927766,0.00010999,2]
[361043422,1747212641236,-400.0,0.00010999,2]
[361043423,1747212641248,-400.0,0.00010999,2]
[361043424,1747212641560,-400.0,0.00010999,2]
[361043425,1747212641578,-400.0,0.00010999,2]
[361043426,1747212641588,-500.0,0.00010999,2]
[361043427,1747212641598,-583.66,0.00010999,2]
[361043428,1747212641609,-400.0,0.00010999,2]
[361043429,1747212641619,-400.0,0.00010999,2]
[361043430,1747212641633,-400.0,0.00010999,2]
[361043431,1747212641643,-400.0,0.00010999,2]
[361043432,1747212641652,-400.0,0.00010999,2]
[361043433,1747212641662,-400.0,0.00010999,2]
[361043434,1747212641673,-1600.14,0.00010999,2]
[361043435,1747212641682,-400.0,0.00010999,2]
[361043436,1747212641692,-400.0,0.00010999,2]
[361043437,1747212641702,-400.0,0.00010999,2]
[361043438,1747212641713,-349.19127077,0.00010999,2]
[361043439,1747212641723,-400.0,0.00010999,2]
[361043440,1747212641732,-400.0,0.00010999,2]
[361043441,1747212641742,-400.0,0.00010999,2]
[361043442,1747212641752,-400.0,0.00010999,2]
[361043443,1747212641761,-305.38453907,0.00010999,2]
[361043444,1747212641771,-1802.3,0.00010999,2]
[361043445,1747212641781,-186.38239816,0.00010999,2]
[361043446,1747212641791,-1221.23,0.00010999,2]
[361043447,1747212641801,-1895.91,0.00010999,2]
[361043448,1747212641810,-492.84,0.00010999,2]
[361043449,1747212641821,-400.0,0.00010999,2]
[361043450,1747212641832,-400.0,0.00010999,2]
[361043451,1747212641841,-1506.57,0.00010999,2]
[361043452,1747212641850,-2563.99,0.00010999,2]
[361043453,1747212641859,-400.0,0.00010999,2]
[361043454,1747212641869,-840.38,0.00010999,2]
[361043455,1747212641883,-236.01873393,0.00010999,2]
[361043456,1747212641893,-267.91964753,0.00010999,2]
[361043457,1747212641902,-400.0,0.00010999,2]
[361043458,1747212641912,-482.41,0.00010999,2]
[361043459,1747212641922,-420.5,0.00010999,2]
[361043460,1747212641932,-400.0,0.00010999,2]
[361043461,1747212641941,-400.0,0.00010999,2]
[361043462,1747212641951,-400.0,0.00010999,2]
[361043463,1747212641961,-400.0,0.00010999,2]
[361043464,1747212641971,-527.69,0.00010999,2]
[361043465,1747212641980,-18564.33,0.00010999,2]
[361043466,1747212641990,-1343.88,0.00010999,2]
[361043467,1747212641999,-341.15487717,0.00010999,2]
[361043468,1747212642009,-2099.34,0.00010999,2]
[361043469,1747212642019,-7356.73,0.00010999,2]
[361043470,1747212642029,-400.0,0.00010999,2]
[361043471,1747212642038,-3060.21,0.00010999,2]
[361043472,1747212642048,-400.0,0.00010999,2]
[361043473,1747212642058,-400.0,0.00010999,2]
[361043474,1747212642067,-400.0,0.00010999,2]
[361043475,1747212642077,-7402.41,0.00010999,2]
[361043476,1747212642086,-500.0,0.00010999,2]
[361043477,1747212642100,-500.0,0.00010999,2]
[361043478,1747212642110,-500.0,0.00010999,2]
[361043479,1747212642119,-400.0,0.00010999,2]
[361043480,1747212642133,-500.0,0.00010999,2]
[361043481,1747212642143,-500.0,0.00010999,2]
[361043482,1747212642152,-500.0,0.00010999,2]
[361043483,1747212642162,-500.0,0.00010999,2]
[361043484,1747212642172,-988.29,0.00010999,2]
[361043485,1747212642182,-400.0,0.00010999,2]
[361043486,1747212642192,-1425.89,0.00010999,2]
[361043487,1747212642202,-703.29,0.00010999,2]